[Event "Titled Tuesday Blitz November 08 Late 2022"]
[White "Freile Martin, Javier"]
[Black "Ghazarian, Kirk"]
[WhiteFideId "3600165"]
[BlackFideId "30908604"]
[WhiteElo "2479"]
[BlackElo "2683"]
[Result "0-1"]
[Round "03"]
[TimeControl "180+1"]
[Date "2022.11.09"]
[WhiteClock "0:00:11"]
[BlackClock "0:00:12"]

1. c4 {[%clk 0:03:00]}  Nf6 {[%clk 0:02:58]} 2. Nc3 {[%clk 0:02:59]}  g6 {[%clk 0:02:57]} 3. d4 {[%clk 0:02:59]}  Bg7 {[%clk 0:02:55]} 4. e4 {[%clk 0:02:58]}  O-O {[%clk 0:02:54]} 5. Nf3 {[%clk 0:02:57]}  d6 {[%clk 0:02:54]} 6. Be2 {[%clk 0:02:56]}  Nbd7 {[%clk 0:02:55]} 7. Be3 {[%clk 0:02:53]}  e5 {[%clk 0:02:54]} 8. d5 {[%clk 0:02:53]}  a5 {[%clk 0:02:52]} 9. Nd2 {[%clk 0:02:52]}  Nc5 {[%clk 0:02:47]} 10. O-O {[%clk 0:02:51]}  Ne8 {[%clk 0:02:45]} 11. Rb1 {[%clk 0:02:49]}  f5 {[%clk 0:02:43]} 12. f3 {[%clk 0:02:49]}  f4 {[%clk 0:02:43]} 13. Bf2 {[%clk 0:02:48]}  g5 {[%clk 0:02:41]} 14. a3 {[%clk 0:02:47]}  h5 {[%clk 0:02:28]} 15. b4 {[%clk 0:02:46]}  axb4 {[%clk 0:02:29]} 16. axb4 {[%clk 0:02:46]}  Nd7 {[%clk 0:02:30]} 17. c5 {[%clk 0:02:43]}  Ndf6 {[%clk 0:02:29]} 18. Nc4 {[%clk 0:02:36]}  g4 {[%clk 0:02:22]} 19. b5 {[%clk 0:02:23]}  gxf3 {[%clk 0:02:09]} 20. Bxf3 {[%clk 0:02:20]}  Ng4 {[%clk 0:02:08]} 21. b6 {[%clk 0:01:54]}  Nxf2 {[%clk 0:02:06]} 22. Rxf2 {[%clk 0:01:54]}  dxc5 {[%clk 0:02:00]} 23. bxc7 {[%clk 0:01:51]}  Nxc7 {[%clk 0:01:51]} 24. Bxh5 {[%clk 0:01:49]}  Qg5 {[%clk 0:01:37]} 25. Bf3 {[%clk 0:01:48]}  Rd8 {[%clk 0:01:30]} 26. Nb6 {[%clk 0:01:44]}  Rb8 {[%clk 0:01:19]} 27. Nxc8 {[%clk 0:01:43]}  Rdxc8 {[%clk 0:01:20]} 28. d6 {[%clk 0:01:40]}  Ne6 {[%clk 0:01:17]} 29. Qd5 {[%clk 0:01:39]}  Qg6 {[%clk 0:01:17]} 30. d7 {[%clk 0:01:31]}  Rd8 {[%clk 0:01:16]} 31. Rb6 {[%clk 0:01:31]}  Kf7 {[%clk 0:01:04]} 32. Bh5 {[%clk 0:01:28]}  Qxh5 {[%clk 0:01:01]} 33. Qxe6+ {[%clk 0:01:25]}  Kf8 {[%clk 0:01:00]} 34. Nd5 {[%clk 0:01:23]}  Qf7 {[%clk 0:00:49]} 35. Qd6+ {[%clk 0:00:58]}  Kg8 {[%clk 0:00:49]} 36. Ne7+ {[%clk 0:00:56]}  Kh8 {[%clk 0:00:30]} 37. Rb3 {[%clk 0:00:55]}  Qxb3 {[%clk 0:00:18]} 38. g3 {[%clk 0:00:51]}  Qb1+ {[%clk 0:00:17]} 39. Kg2 {[%clk 0:00:49]}  Qxe4+ {[%clk 0:00:17]} 40. Kh3 {[%clk 0:00:49]}  Qh7+ {[%clk 0:00:17]} 41. Kg2 {[%clk 0:00:48]}  Qe4+ {[%clk 0:00:15]} 42. Kg1 {[%clk 0:00:46]}  Ra8 {[%clk 0:00:14]} 43. Rf1 {[%clk 0:00:35]}  Qd4+ {[%clk 0:00:13]} 44. Qxd4 {[%clk 0:00:33]}  cxd4 {[%clk 0:00:14]} 45. gxf4 {[%clk 0:00:28]}  Rxd7 {[%clk 0:00:14]} 46. Ng6+ {[%clk 0:00:27]}  Kh7 {[%clk 0:00:14]} 47. f5 {[%clk 0:00:27]}  Bf6 {[%clk 0:00:14]} 48. Rf3 {[%clk 0:00:24]}  Kg7 {[%clk 0:00:13]} 49. Rg3 {[%clk 0:00:23]}  Ra1+ {[%clk 0:00:12]} 50. Kg2 {[%clk 0:00:23]}  Ra2+ {[%clk 0:00:13]} 51. Kh3 {[%clk 0:00:22]}  Kf7 {[%clk 0:00:13]} 52. Kg4 {[%clk 0:00:21]}  d3 {[%clk 0:00:13]} 53. Rh3 {[%clk 0:00:20]}  Ra4+ {[%clk 0:00:11]} 54. Kf3 {[%clk 0:00:19]}  e4+ {[%clk 0:00:12]} 55. Ke3 {[%clk 0:00:18]}  Bg5+ {[%clk 0:00:12]} 56. Kf2 {[%clk 0:00:17]}  e3+ {[%clk 0:00:12]} 57. Kf3 {[%clk 0:00:17]}  e2 {[%clk 0:00:12]} 58. Rh7+ {[%clk 0:00:16]}  Kf6 {[%clk 0:00:12]} 59. Rxd7 {[%clk 0:00:15]}  e1=Q {[%clk 0:00:12]} 60. Rd6+ {[%clk 0:00:16]}  Kxf5 {[%clk 0:00:11]} 61. Rd5+ {[%clk 0:00:14]}  Kxg6 {[%clk 0:00:11]} 62. Rxd3 {[%clk 0:00:14]}  Rf4+ {[%clk 0:00:10]} 63. Kg2 {[%clk 0:00:12]}  Qf1+ {[%clk 0:00:10]} 64. Kg3 {[%clk 0:00:12]}  Qxd3+ {[%clk 0:00:11]} 65. Kg2 {[%clk 0:00:12]}  Qf3+ {[%clk 0:00:11]} 66. Kg1 {[%clk 0:00:11]}  Qf1# {[%clk 0:00:12]} 0-1


[Site "https://www.chess.com"]

[Event "Titled Tuesday Blitz November 08 Late 2022"]
[White "Goncalves, Davi Sulzbacher"]
[Black "Kanakaris, Georgios"]
[WhiteFideId "2154510"]
[BlackFideId "4209460"]
[WhiteElo "2460"]
[BlackElo "2641"]
[Result "0-1"]
[Round "03"]
[TimeControl "180+1"]
[Date "2022.11.09"]
[WhiteClock "0:00:03"]
[BlackClock "0:00:19"]

1. Nf3 {[%clk 0:02:59]}  Nf6 {[%clk 0:02:57]} 2. g3 {[%clk 0:02:58]}  g6 {[%clk 0:02:57]} 3. Bg2 {[%clk 0:02:58]}  Bg7 {[%clk 0:02:58]} 4. O-O {[%clk 0:02:58]}  O-O {[%clk 0:02:59]} 5. d4 {[%clk 0:02:58]}  d6 {[%clk 0:02:59]} 6. c4 {[%clk 0:02:58]}  Nc6 {[%clk 0:02:54]} 7. Nc3 {[%clk 0:02:58]}  Bg4 {[%clk 0:02:54]} 8. Nd5 {[%clk 0:02:42]}  Nxd5 {[%clk 0:02:48]} 9. cxd5 {[%clk 0:02:41]}  Bxf3 {[%clk 0:02:48]} 10. dxc6 {[%clk 0:02:33]}  Bxg2 {[%clk 0:02:44]} 11. Kxg2 {[%clk 0:02:34]}  bxc6 {[%clk 0:02:45]} 12. Be3 {[%clk 0:02:26]}  Qd7 {[%clk 0:02:42]} 13. Qa4 {[%clk 0:02:22]}  Rfb8 {[%clk 0:02:42]} 14. Rfc1 {[%clk 0:02:16]}  Rxb2 {[%clk 0:02:37]} 15. Qxc6 {[%clk 0:02:13]}  Qxc6+ {[%clk 0:02:30]} 16. Rxc6 {[%clk 0:02:11]}  Rxe2 {[%clk 0:02:30]} 17. Rxc7 {[%clk 0:02:10]}  Bf6 {[%clk 0:02:30]} 18. Rac1 {[%clk 0:02:02]}  Kg7 {[%clk 0:02:25]} 19. g4 {[%clk 0:02:00]}  h6 {[%clk 0:02:17]} 20. R1c2 {[%clk 0:01:52]}  Rxc2 {[%clk 0:02:15]} 21. Rxc2 {[%clk 0:01:52]}  a5 {[%clk 0:02:03]} 22. Rc7 {[%clk 0:01:51]}  a4 {[%clk 0:02:01]} 23. Kf3 {[%clk 0:01:43]}  Rb8 {[%clk 0:01:50]} 24. Ra7 {[%clk 0:01:41]}  Rb4 {[%clk 0:01:49]} 25. Ke4 {[%clk 0:01:33]}  Bxd4 {[%clk 0:01:46]} 26. Bxd4+ {[%clk 0:01:28]}  e5 {[%clk 0:01:46]} 27. Ke3 {[%clk 0:01:03]}  Rxd4 {[%clk 0:01:46]} 28. h3 {[%clk 0:01:03]}  Kf6 {[%clk 0:01:42]} 29. Rd7 {[%clk 0:00:57]}  Ke6 {[%clk 0:01:42]} 30. Ra7 {[%clk 0:00:56]}  f5 {[%clk 0:01:39]} 31. Rh7 {[%clk 0:00:53]}  fxg4 {[%clk 0:01:38]} 32. Rxh6 {[%clk 0:00:52]}  gxh3 {[%clk 0:01:37]} 33. Rxg6+ {[%clk 0:00:52]}  Kd5 {[%clk 0:01:34]} 34. Rh6 {[%clk 0:00:51]}  Kc4 {[%clk 0:01:33]} 35. Ke2 {[%clk 0:00:49]}  Kc3 {[%clk 0:01:24]} 36. Rxh3+ {[%clk 0:00:48]}  Kb2 {[%clk 0:01:25]} 37. a3 {[%clk 0:00:43]}  e4 {[%clk 0:01:22]} 38. Re3 {[%clk 0:00:36]}  d5 {[%clk 0:01:19]} 39. f3 {[%clk 0:00:30]}  exf3+ {[%clk 0:01:15]} 40. Rxf3 {[%clk 0:00:30]}  Rc4 {[%clk 0:00:57]} 41. Rd3 {[%clk 0:00:28]}  d4 {[%clk 0:00:43]} 42. Kd2 {[%clk 0:00:25]}  Kb1 {[%clk 0:00:20]} 43. Kd1 {[%clk 0:00:25]}  Rc1+ {[%clk 0:00:19]} 44. Kd2 {[%clk 0:00:25]}  Rc4 {[%clk 0:00:20]} 45. Kd1 {[%clk 0:00:24]}  Ka2 {[%clk 0:00:20]} 46. Kd2 {[%clk 0:00:24]}  Kb2 {[%clk 0:00:21]} 47. Kd1 {[%clk 0:00:24]}  Rc3 {[%clk 0:00:20]} 48. Rxd4 {[%clk 0:00:25]}  Kxa3 {[%clk 0:00:21]} 49. Kd2 {[%clk 0:00:22]}  Rc7 {[%clk 0:00:20]} 50. Rh4 {[%clk 0:00:17]}  Kb3 {[%clk 0:00:20]} 51. Rh3+ {[%clk 0:00:16]}  Kb2 {[%clk 0:00:20]} 52. Rh8 {[%clk 0:00:16]}  Rb7 {[%clk 0:00:20]} 53. Rc8 {[%clk 0:00:15]}  a3 {[%clk 0:00:20]} 54. Rc2+ {[%clk 0:00:16]}  Kb3 {[%clk 0:00:21]} 55. Kc1 {[%clk 0:00:15]}  a2 {[%clk 0:00:20]} 56. Rb2+ {[%clk 0:00:15]}  Ka3 {[%clk 0:00:20]} 57. Rxb7 {[%clk 0:00:14]}  a1=Q+ {[%clk 0:00:21]} 58. Kc2 {[%clk 0:00:14]}  Qd4 {[%clk 0:00:19]} 59. Rb3+ {[%clk 0:00:12]}  Ka4 {[%clk 0:00:19]} 60. Rd3 {[%clk 0:00:12]}  Qe4 {[%clk 0:00:18]} 61. Kc3 {[%clk 0:00:12]}  Kb5 {[%clk 0:00:19]} 62. Rd4 {[%clk 0:00:11]}  Qe3+ {[%clk 0:00:18]} 63. Rd3 {[%clk 0:00:12]}  Qe2 {[%clk 0:00:18]} 64. Kd4 {[%clk 0:00:12]}  Kb4 {[%clk 0:00:17]} 65. Re3 {[%clk 0:00:07]}  Qc4+ {[%clk 0:00:17]} 66. Ke5 {[%clk 0:00:06]}  Kc5 {[%clk 0:00:18]} 67. Re4 {[%clk 0:00:06]}  Qd5+ {[%clk 0:00:18]} 68. Kf4 {[%clk 0:00:07]}  Kd6 {[%clk 0:00:17]} 69. Ke3 {[%clk 0:00:07]}  Qb3+ {[%clk 0:00:17]} 70. Kf4 {[%clk 0:00:07]}  Qd3 {[%clk 0:00:17]} 71. Re3 {[%clk 0:00:07]}  Qd2 {[%clk 0:00:16]} 72. Ke4 {[%clk 0:00:06]}  Qd5+ {[%clk 0:00:17]} 73. Kf4 {[%clk 0:00:06]}  Qd4+ {[%clk 0:00:17]} 74. Kf3 {[%clk 0:00:06]}  Kd5 {[%clk 0:00:18]} 75. Ke2 {[%clk 0:00:06]}  Qg4+ {[%clk 0:00:17]} 76. Kd3 {[%clk 0:00:06]}  Qc4+ {[%clk 0:00:17]} 77. Kd2 {[%clk 0:00:05]}  Kd4 {[%clk 0:00:17]} 78. Rf3 {[%clk 0:00:05]}  Qa2+ {[%clk 0:00:17]} 79. Ke1 {[%clk 0:00:04]}  Qg2 {[%clk 0:00:18]} 80. Rf2 {[%clk 0:00:04]}  Qg3 {[%clk 0:00:18]} 81. Ke2 {[%clk 0:00:03]}  Qe3+ {[%clk 0:00:19]} 82. Kf1 {[%clk 0:00:04]}  Qd3+ {[%clk 0:00:19]} 83. Re2 {[%clk 0:00:03]}  Qb5 {[%clk 0:00:18]} 84. Kf2 {[%clk 0:00:03]}  Kd3 {[%clk 0:00:19]} 85. Re3+ {[%clk 0:00:03]}  Kd2 {[%clk 0:00:19]} 86. Re4 {[%clk 0:00:03]}  Qf5+ {[%clk 0:00:19]} 0-1


[Site "https://www.chess.com"]

[Event "Titled Tuesday Blitz November 08 Late 2022"]
[White "Gritsenko, Nikolai"]
[Black "Martinez Alcantara, Jose Eduardo"]
[WhiteFideId "14112493"]
[BlackFideId "3805662"]
[WhiteElo "2672"]
[BlackElo "3019"]
[Result "0-1"]
[Round "03"]
[TimeControl "180+1"]
[Date "2022.11.09"]
[WhiteClock "0:00:04"]
[BlackClock "0:00:22"]

1. e4 {[%clk 0:03:00]}  c5 {[%clk 0:02:59]} 2. Nf3 {[%clk 0:03:00]}  d6 {[%clk 0:03:00]} 3. Bb5+ {[%clk 0:02:59]}  Bd7 {[%clk 0:03:00]} 4. c4 {[%clk 0:02:59]}  Nf6 {[%clk 0:03:00]} 5. Nc3 {[%clk 0:02:58]}  a6 {[%clk 0:03:00]} 6. Bxd7+ {[%clk 0:02:57]}  Nbxd7 {[%clk 0:03:01]} 7. d3 {[%clk 0:02:55]}  g6 {[%clk 0:03:01]} 8. O-O {[%clk 0:02:55]}  Bg7 {[%clk 0:03:01]} 9. h3 {[%clk 0:02:52]}  Rb8 {[%clk 0:03:02]} 10. Be3 {[%clk 0:02:51]}  b5 {[%clk 0:03:02]} 11. b3 {[%clk 0:02:50]}  O-O {[%clk 0:03:01]} 12. Rc1 {[%clk 0:02:48]}  e6 {[%clk 0:03:00]} 13. Qd2 {[%clk 0:02:44]}  Qe7 {[%clk 0:03:00]} 14. Bh6 {[%clk 0:02:42]}  Rfc8 {[%clk 0:02:56]} 15. Rfe1 {[%clk 0:02:35]}  Rd8 {[%clk 0:02:54]} 16. Rf1 {[%clk 0:02:34]}  Qf8 {[%clk 0:02:48]} 17. Bxg7 {[%clk 0:02:33]}  Kxg7 {[%clk 0:02:49]} 18. Rce1 {[%clk 0:02:31]}  Qe7 {[%clk 0:02:49]} 19. Nh2 {[%clk 0:02:28]}  Ne5 {[%clk 0:02:46]} 20. f4 {[%clk 0:02:27]}  Nc6 {[%clk 0:02:47]} 21. Nf3 {[%clk 0:02:24]}  Re8 {[%clk 0:02:38]} 22. e5 {[%clk 0:02:17]}  Nd7 {[%clk 0:02:36]} 23. Ne4 {[%clk 0:02:17]}  dxe5 {[%clk 0:02:32]} 24. fxe5 {[%clk 0:02:16]}  h6 {[%clk 0:02:29]} 25. h4 {[%clk 0:02:14]}  Rf8 {[%clk 0:02:27]} 26. Qf4 {[%clk 0:02:08]}  Rbd8 {[%clk 0:02:21]} 27. h5 {[%clk 0:01:44]}  Nb4 {[%clk 0:02:20]} 28. Re3 {[%clk 0:01:21]}  Nc2 {[%clk 0:02:17]} 29. Re2 {[%clk 0:01:19]}  Nb4 {[%clk 0:02:18]} 30. Re3 {[%clk 0:01:14]}  bxc4 {[%clk 0:02:16]} 31. dxc4 {[%clk 0:01:10]}  Nc6 {[%clk 0:02:14]} 32. Ng3 {[%clk 0:01:05]}  g5 {[%clk 0:02:12]} 33. Qe4 {[%clk 0:01:04]}  Ndb8 {[%clk 0:02:05]} 34. Ne2 {[%clk 0:00:49]}  Rd7 {[%clk 0:01:46]} 35. Nh2 {[%clk 0:00:47]}  Nd4 {[%clk 0:01:47]} 36. Ng3 {[%clk 0:00:39]}  f5 {[%clk 0:01:28]} 37. exf6+ {[%clk 0:00:38]}  Rxf6 {[%clk 0:01:28]} 38. Rxf6 {[%clk 0:00:37]}  Qxf6 {[%clk 0:01:29]} 39. Ng4 {[%clk 0:00:37]}  Qf4 {[%clk 0:01:18]} 40. Qg6+ {[%clk 0:00:35]}  Kf8 {[%clk 0:01:19]} 41. Qxh6+ {[%clk 0:00:32]}  Ke7 {[%clk 0:01:20]} 42. Qg7+ {[%clk 0:00:19]}  Kd6 {[%clk 0:01:13]} 43. Qe5+ {[%clk 0:00:18]}  Qxe5 {[%clk 0:01:13]} 44. Nxe5 {[%clk 0:00:18]}  Rh7 {[%clk 0:01:14]} 45. Ng4 {[%clk 0:00:17]}  Nd7 {[%clk 0:01:11]} 46. h6 {[%clk 0:00:17]}  Nf5 {[%clk 0:01:02]} 47. Ne4+ {[%clk 0:00:15]}  Kc6 {[%clk 0:01:03]} 48. Rd3 {[%clk 0:00:14]}  Nxh6 {[%clk 0:00:52]} 49. Rg3 {[%clk 0:00:13]}  Nf5 {[%clk 0:00:49]} 50. Rh3 {[%clk 0:00:12]}  Rg7 {[%clk 0:00:47]} 51. Rh8 {[%clk 0:00:12]}  Kc7 {[%clk 0:00:47]} 52. Ra8 {[%clk 0:00:11]}  Kb7 {[%clk 0:00:48]} 53. Rd8 {[%clk 0:00:11]}  Kb6 {[%clk 0:00:45]} 54. Kf2 {[%clk 0:00:08]}  Nd4 {[%clk 0:00:42]} 55. Ke3 {[%clk 0:00:08]}  Nc6 {[%clk 0:00:42]} 56. Re8 {[%clk 0:00:07]}  Nd4 {[%clk 0:00:39]} 57. Ngf6 {[%clk 0:00:06]}  Nxf6 {[%clk 0:00:35]} 58. Nxf6 {[%clk 0:00:06]}  Nf5+ {[%clk 0:00:29]} 59. Kd3 {[%clk 0:00:04]}  Nd4 {[%clk 0:00:29]} 60. Ne4 {[%clk 0:00:03]}  Rd7 {[%clk 0:00:30]} 61. Kc3 {[%clk 0:00:03]}  Ne2+ {[%clk 0:00:30]} 62. Kc2 {[%clk 0:00:03]}  Nd4+ {[%clk 0:00:30]} 63. Kc3 {[%clk 0:00:02]}  Rc7 {[%clk 0:00:29]} 64. Nxg5 {[%clk 0:00:02]}  Rg7 {[%clk 0:00:24]} 65. Nxe6 {[%clk 0:00:03]}  Rg3+ {[%clk 0:00:25]} 66. Kb2 {[%clk 0:00:03]}  Rxg2+ {[%clk 0:00:25]} 67. Ka3 {[%clk 0:00:04]}  Nc2+ {[%clk 0:00:25]} 68. Ka4 {[%clk 0:00:04]}  Nb4 {[%clk 0:00:25]} 69. a3 {[%clk 0:00:04]}  Na2 {[%clk 0:00:23]} 70. b4 {[%clk 0:00:03]}  cxb4 {[%clk 0:00:22]} 71. axb4 {[%clk 0:00:03]}  Nc3+ {[%clk 0:00:20]} 72. Kb3 {[%clk 0:00:03]}  Ne4 {[%clk 0:00:20]} 73. c5+ {[%clk 0:00:03]}  Ka7 {[%clk 0:00:21]} 74. Kc4 {[%clk 0:00:03]}  Rc2+ {[%clk 0:00:20]} 75. Kd5 {[%clk 0:00:03]}  Nf6+ {[%clk 0:00:20]} 76. Kc6 {[%clk 0:00:03]}  Nxe8 {[%clk 0:00:21]} 77. Kd7 {[%clk 0:00:03]}  Nf6+ {[%clk 0:00:21]} 78. Ke7 {[%clk 0:00:04]}  Nd5+ {[%clk 0:00:21]} 79. Kd6 {[%clk 0:00:04]}  Nxb4 {[%clk 0:00:22]} 80. Nd4 {[%clk 0:00:04]}  Rd2 {[%clk 0:00:22]} 81. Ke5 {[%clk 0:00:05]}  Kb7 {[%clk 0:00:21]} 82. Ke4 {[%clk 0:00:04]}  Nc6 {[%clk 0:00:22]} 0-1


[Site "https://www.chess.com"]

[Event "Titled Tuesday Blitz November 08 Late 2022"]
[White "Gubajdullin, Alexei"]
[Black "Makaraci, Tunahan"]
[WhiteFideId "4141202"]
[BlackFideId "6356559"]
[WhiteElo "2639"]
[BlackElo "2456"]
[Result "0-1"]
[Round "03"]
[TimeControl "180+1"]
[Date "2022.11.09"]
[WhiteClock "0:01:00"]
[BlackClock "0:01:41"]

1. d4 {[%clk 0:03:00]}  d5 {[%clk 0:03:00]} 2. Nf3 {[%clk 0:03:00]}  c5 {[%clk 0:03:00]} 3. c3 {[%clk 0:02:57]}  Nf6 {[%clk 0:02:59]} 4. Bf4 {[%clk 0:02:56]}  Nc6 {[%clk 0:02:59]} 5. e3 {[%clk 0:02:55]}  Qb6 {[%clk 0:02:58]} 6. Qb3 {[%clk 0:02:53]}  c4 {[%clk 0:02:58]} 7. Qc2 {[%clk 0:02:53]}  Bf5 {[%clk 0:02:58]} 8. Qc1 {[%clk 0:02:53]}  Nh5 {[%clk 0:02:58]} 9. Be5 {[%clk 0:02:52]}  f6 {[%clk 0:02:55]} 10. Bg3 {[%clk 0:02:51]}  Nxg3 {[%clk 0:02:53]} 11. hxg3 {[%clk 0:02:50]}  e5 {[%clk 0:02:40]} 12. dxe5 {[%clk 0:02:35]}  Nxe5 {[%clk 0:02:35]} 13. Nxe5 {[%clk 0:02:29]}  fxe5 {[%clk 0:02:34]} 14. Nd2 {[%clk 0:02:29]}  O-O-O {[%clk 0:02:27]} 15. e4 {[%clk 0:02:23]}  Bxe4 {[%clk 0:02:26]} 16. Nxe4 {[%clk 0:02:21]}  dxe4 {[%clk 0:02:26]} 17. Bxc4 {[%clk 0:02:21]}  Bc5 {[%clk 0:02:24]} 18. Qc2 {[%clk 0:02:03]}  Rhf8 {[%clk 0:02:22]} 19. Rf1 {[%clk 0:01:36]}  e3 {[%clk 0:02:15]} 20. fxe3 {[%clk 0:01:35]}  Rxf1+ {[%clk 0:02:11]} 21. Kxf1 {[%clk 0:01:34]}  Bxe3 {[%clk 0:02:10]} 22. Rd1 {[%clk 0:01:17]}  Rf8+ {[%clk 0:01:52]} 23. Ke1 {[%clk 0:01:14]}  Bf2+ {[%clk 0:01:43]} 24. Ke2 {[%clk 0:01:00]}  Qe3+ {[%clk 0:01:41]} 0-1


[Site "https://www.chess.com"]

[Event "Titled Tuesday Blitz November 08 Late 2022"]
[White "Hansen, Eric"]
[Black "Sohal, Tanraj"]
[WhiteFideId "2606771"]
[BlackFideId "2608499"]
[WhiteElo "2952"]
[BlackElo "2528"]
[Result "1-0"]
[Round "03"]
[TimeControl "180+1"]
[Date "2022.11.09"]
[WhiteClock "0:00:20"]
[BlackClock "0:00:02"]

1. d4 {[%clk 0:03:00]}  d5 {[%clk 0:03:00]} 2. c4 {[%clk 0:03:00]}  e6 {[%clk 0:03:00]} 3. Nc3 {[%clk 0:03:00]}  Nf6 {[%clk 0:03:00]} 4. cxd5 {[%clk 0:03:00]}  exd5 {[%clk 0:03:00]} 5. Bg5 {[%clk 0:03:01]}  Be7 {[%clk 0:03:00]} 6. e3 {[%clk 0:03:01]}  O-O {[%clk 0:02:59]} 7. Qc2 {[%clk 0:03:01]}  c6 {[%clk 0:02:59]} 8. Bd3 {[%clk 0:03:01]}  g6 {[%clk 0:02:59]} 9. Nf3 {[%clk 0:03:01]}  Nbd7 {[%clk 0:02:59]} 10. h3 {[%clk 0:03:01]}  Re8 {[%clk 0:02:59]} 11. O-O {[%clk 0:03:01]}  Nf8 {[%clk 0:03:00]} 12. Rab1 {[%clk 0:02:59]}  Ne6 {[%clk 0:03:00]} 13. Bh6 {[%clk 0:02:59]}  Ng7 {[%clk 0:02:59]} 14. b4 {[%clk 0:02:58]}  a6 {[%clk 0:02:43]} 15. a4 {[%clk 0:02:58]}  Bf5 {[%clk 0:02:38]} 16. Bxg7 {[%clk 0:02:47]}  Bxd3 {[%clk 0:02:37]} 17. Qxd3 {[%clk 0:02:48]}  Kxg7 {[%clk 0:02:37]} 18. b5 {[%clk 0:02:48]}  axb5 {[%clk 0:02:25]} 19. axb5 {[%clk 0:02:48]}  Bd6 {[%clk 0:02:25]} 20. bxc6 {[%clk 0:02:48]}  bxc6 {[%clk 0:02:25]} 21. Qc2 {[%clk 0:02:48]}  Qd7 {[%clk 0:02:18]} 22. Rb6 {[%clk 0:02:45]}  Reb8 {[%clk 0:02:15]} 23. Rfb1 {[%clk 0:02:45]}  Rxb6 {[%clk 0:02:15]} 24. Rxb6 {[%clk 0:02:46]}  Ra1+ {[%clk 0:02:13]} 25. Rb1 {[%clk 0:02:39]}  Qa7 {[%clk 0:02:08]} 26. g3 {[%clk 0:02:37]}  Rxb1+ {[%clk 0:02:03]} 27. Qxb1 {[%clk 0:02:38]}  c5 {[%clk 0:01:43]} 28. dxc5 {[%clk 0:02:35]}  Qxc5 {[%clk 0:01:42]} 29. Ne2 {[%clk 0:02:32]}  Be7 {[%clk 0:01:36]} 30. Nf4 {[%clk 0:02:26]}  Bd6 {[%clk 0:01:28]} 31. Ne2 {[%clk 0:02:21]}  Be7 {[%clk 0:01:25]} 32. Qb7 {[%clk 0:02:16]}  Bd6 {[%clk 0:01:04]} 33. Ned4 {[%clk 0:02:03]}  Qc7 {[%clk 0:00:57]} 34. Qb2 {[%clk 0:02:01]}  Qd7 {[%clk 0:00:45]} 35. Kg2 {[%clk 0:02:00]}  h6 {[%clk 0:00:42]} 36. g4 {[%clk 0:01:58]}  Kg8 {[%clk 0:00:33]} 37. Qb6 {[%clk 0:01:54]}  h5 {[%clk 0:00:26]} 38. gxh5 {[%clk 0:01:25]}  Nxh5 {[%clk 0:00:23]} 39. Qa5 {[%clk 0:01:18]}  Bf8 {[%clk 0:00:16]} 40. Ne5 {[%clk 0:01:14]}  Qb7 {[%clk 0:00:12]} 41. Qd8 {[%clk 0:01:07]}  Qe7 {[%clk 0:00:09]} 42. Qxd5 {[%clk 0:01:02]}  Qg5+ {[%clk 0:00:08]} 43. Kf1 {[%clk 0:01:02]}  Qf6 {[%clk 0:00:08]} 44. Ndf3 {[%clk 0:00:52]}  Ng7 {[%clk 0:00:06]} 45. Ng4 {[%clk 0:00:43]}  Qa6+ {[%clk 0:00:05]} 46. Kg2 {[%clk 0:00:43]}  Ne6 {[%clk 0:00:05]} 47. Nf6+ {[%clk 0:00:31]}  Kg7 {[%clk 0:00:04]} 48. Nd7 {[%clk 0:00:30]}  Bd6 {[%clk 0:00:03]} 49. Nd4 {[%clk 0:00:20]}  Nxd4 {[%clk 0:00:02]} 50. Qxd4+ {[%clk 0:00:20]}  Kg8 {[%clk 0:00:02]} 51. Nf6+ {[%clk 0:00:21]}  Kf8 {[%clk 0:00:02]} 52. Ne4 {[%clk 0:00:20]}  Be7 {[%clk 0:00:02]} 53. Qh8# {[%clk 0:00:20]} 1-0


[Site "https://www.chess.com"]

[Event "Titled Tuesday Blitz November 08 Late 2022"]
[White "Harvey, Marcus R"]
[Black "Estrada Nieto, Julian"]
[WhiteFideId "400092"]
[BlackFideId "5101018"]
[WhiteElo "2764"]
[BlackElo "2524"]
[Result "1-0"]
[Round "03"]
[TimeControl "180+1"]
[Date "2022.11.09"]
[WhiteClock "0:00:42"]
[BlackClock "0:00:50"]

1. c4 {[%clk 0:03:00]}  e5 {[%clk 0:02:59]} 2. Nc3 {[%clk 0:02:59]}  Nf6 {[%clk 0:03:00]} 3. e4 {[%clk 0:02:55]}  Nc6 {[%clk 0:02:59]} 4. d3 {[%clk 0:02:54]}  Bb4 {[%clk 0:02:59]} 5. Bd2 {[%clk 0:02:53]}  d6 {[%clk 0:02:57]} 6. a3 {[%clk 0:02:51]}  Ba5 {[%clk 0:02:57]} 7. Nf3 {[%clk 0:02:48]}  Bg4 {[%clk 0:02:56]} 8. Be2 {[%clk 0:02:43]}  Bxf3 {[%clk 0:02:53]} 9. gxf3 {[%clk 0:02:41]}  Nd4 {[%clk 0:02:53]} 10. b4 {[%clk 0:02:40]}  Bb6 {[%clk 0:02:53]} 11. f4 {[%clk 0:02:41]}  c6 {[%clk 0:02:49]} 12. Rg1 {[%clk 0:02:37]}  O-O {[%clk 0:02:31]} 13. c5 {[%clk 0:02:07]}  dxc5 {[%clk 0:02:24]} 14. fxe5 {[%clk 0:02:06]}  Nd7 {[%clk 0:02:24]} 15. Bg5 {[%clk 0:01:58]}  Qc7 {[%clk 0:02:08]} 16. f4 {[%clk 0:01:52]}  Kh8 {[%clk 0:02:07]} 17. Rg2 {[%clk 0:01:44]}  f6 {[%clk 0:02:04]} 18. exf6 {[%clk 0:01:42]}  gxf6 {[%clk 0:02:03]} 19. Bh6 {[%clk 0:01:41]}  Rg8 {[%clk 0:02:03]} 20. Kf1 {[%clk 0:01:37]}  Rxg2 {[%clk 0:02:00]} 21. Kxg2 {[%clk 0:01:38]}  Rg8+ {[%clk 0:02:00]} 22. Kh1 {[%clk 0:01:39]}  Rg6 {[%clk 0:02:00]} 23. Bh5 {[%clk 0:01:13]}  Rxh6 {[%clk 0:01:59]} 24. Qg4 {[%clk 0:01:13]}  Nc2 {[%clk 0:01:32]} 25. Rg1 {[%clk 0:01:10]}  Rg6 {[%clk 0:01:19]} 26. Bxg6 {[%clk 0:01:10]}  Nf8 {[%clk 0:01:10]} 27. Bh5 {[%clk 0:00:49]}  Ng6 {[%clk 0:01:01]} 28. Bxg6 {[%clk 0:00:48]}  cxb4 {[%clk 0:01:01]} 29. Bxh7 {[%clk 0:00:43]}  Kxh7 {[%clk 0:00:50]} 30. Qh5# {[%clk 0:00:42]} 1-0


[Site "https://www.chess.com"]